{"text_format":"3","workbook":"xlsx","n_sheets":1,"sheets":["Pricing Schedule"],"not_rendered":{"images":1,"defined_names":1},"read":"whole","date_system":"1900"}

{"sheet":"Pricing Schedule","index":0,"n_rows":61,"n_cols":7,"rows_kept":61,"merged":[[6,1,6,6],[31,2,31,6],[38,1,38,3],[39,1,39,3]]}
[]
[]
[]
[]
[]
[]
[null,"ATTACHMENT A - PRICING SHEET"]
[null,"Bidders must submit pricing for the goods set forth in the ITB and fill in the pricing schedules using US Dollars."]
[null,"Any bidder, who enters a zero (0), leaves blank, or uses characters in any of the light blue highlighted pricing field "]
[null,"may be deemed nonresponsive. "]
[]
[{"$nulls":3},"Section 1: GLOCK Gen5 - Pistols, Parts, Accessories, and Trade-In"]
[]
[null,"Item No.","Item Description","Estimated Quantity","Unit of Measure","Unit Price","Total Extension Price"]
[null,null,"Glock Pistols"]
[null,1,"GLOCK G17 MOS - 9mm Generation 5 semi-automatic pistol with 4.5” barrel, Glock night sights, 5.5lbs connector, with three (3) seventeen round magazines.",100,"Each",null,{"$f":"SUM(D16 * F16)","v":{"v":0,"d":"$0.00"}}]
[null,2,"GLOCK 19 MOS - 9mm Generation 5 semi-automatic with 4” barrel, Glock night sights,  5.5 lb. connector, with one (1) fifteen round magazine and two (2) seventeen round magazines.",100,"Each",null,{"$f":"SUM(D17 * F17)","v":{"v":0,"d":"$0.00"}}]
[null,3,"GLOCK 43X MOS - 9mm Generation 5 semi-automatic pistol with 3.5” barrel, Glock night sights, 5.5lbs connector with three (3) ten round magazines",100,"Each",null,{"v":0,"d":"$0.00"}]
[null,4,"GLOCK G49 MOS - 9mm Generation 5 semi-automatic pistol with 4.5” barrel, Glock night sights, 5.5lbs connector, with one (1) 15roundmagazine and two (2) seventeen round magazines.",100,"Each",null,{"v":0,"d":"$0.00"}]
[null,5,"GLOCK G45 MOS - 9mm Generation 5 semi-automatic pistol with 4” barrel, Glock night sights, 5.5lbs connector, with three (3) seventeen round magazines.",100,"Each",null,{"v":0,"d":"$0.00"}]
[null,6,"GLOCK G48 MOS - 9mm Generation 5 semi-automatic pistol with 4” barrel, Glock night sights, 5.5lbs connector, with three (3) 10 round magazines",100,"Each",null,{"v":0,"d":"$0.00"}]
[null,7,"Glock 17T Gen5 MOS FX/FOF - 9mm Force on Force Training pistol with 4.5\" barrel, with three (3) 17 round magazines",30,"Each",null,{"v":0,"d":"$0.00"}]
[null,8,"Glock 19T Gen5 MOS FX/FOF - 9mm Force on Force Training pistol with 4\" barrel, with one (1) 15 round magazine and two (2) 17 round magazines",30,"Each",null,{"v":0,"d":"$0.00"}]
[null,9,"Glock 45T Gen5 MOS FX/FOF - 9mm Force on Force Training pistol with 4\" barrel, with three (3) 17 round magazines",30,"Each",null,{"v":0,"d":"$0.00"}]
[null,10,"Glock 17T Gen5 MOS UTM - 9mm Force on Force Training pistol with 4.5\" barrel, with three (3) 17 round magazines",30,"Each",null,{"v":0,"d":"$0.00"}]
[null,11,"Glock 19T Gen5 MOS UTM - 9mm Force on Force Training pistol with 4\" barrel, with one (1) 15 round magazine and two (2) 17 round magazines",30,"Each",null,{"v":0,"d":"$0.00"}]
[null,12,"Glock 45T Gen5 MOS UTM - 9mm Force on Force Training pistol with 4\" barrel, with three (3) 17 round magazines",30,"Each",null,{"v":0,"d":"$0.00"}]
[null,null,"Magazines and Parts"]
[null,13,"Glock (Gen5 9mm) 17-round Magazine",{"v":1000,"d":"1,000"},"Each",null,{"$f":"SUM(D29 * F29)","v":{"v":0,"d":"$0.00"}}]
[null,14,"Glock (Gen5  9mm) 15-round magazine",100,"Each",null,{"v":0,"d":"$0.00"}]
[null,15,"Glock (Gen5 9mm) 43X and 48 10-round magazines",1000,"Each",null,{"v":0,"d":"$0.00"}]
[null,null,"TRADE-IN (Amounts for 16-18 should be a negative number to reflect a credit)"]
[null,16,"Glock Model G17 (Gen5, 9mm), Glock Night Sights, (3) 17-round magazines",100,"Each",null,{"$f":"SUM(D33 * F33)","v":{"v":0,"d":"$0.00"}}]
[null,17,"Glock Model G19 (Gen5, 9mm), Glock Night Sights, (1) 15-round magazine and (2) 17-round magazines",100,"Each",null,{"v":0,"d":"$0.00"}]
[null,18,"Glock Model G26 (Gen5, .9mm), Glock Night Sights, (2) 10 round magazines",100,"Each",null,{"v":0,"d":"$0.00"}]
[]
[{"$nulls":4},"SECTION 1 TOTAL:  ",{"$f":"SUM(F16:F21,F29:F30,F33:F35)","v":{"v":0,"d":"$0.00"}},{"$f":"SUM(G16:G27, G29:G31)-SUM(G33:G35)","v":{"v":0,"d":"$0.00"}}]
[]
[null,"Delivery Terms"]
[null,"Delivery:  ___________ days After Receipt of Order (ARO)"]
[]
[]
[{"$nulls":3},"Section 2 - Other Discounts"]
[]
[null,"Item No.","Other Discounts by Manufacturer","% Discount"]
[null,16]
[null,17]
[null,18]
[null,19]
[]
[null,null,"Catalog / Website:  _____________________________"]
[]
[null,null,"____% for payment within ___days/net ____days"]
[]
[{"$nulls":3},"Section 3 - Officer's Buy Back Optional Cost"]
[]
[null,"Item No.","Item Description","Estimated Quantity","Unit of Measure","Unit Price"]
[null,null,"Officers' Buy Back Optional Cost"]
[null,20,"Glock Model G17 (Gen5, 9mm), Glock Night Sights, (3) 17-round magazines",50,"Each"]
[null,21,"Glock Model G19 (Gen5, 9mm), Glock Night Sights, (1) 15-round magazine and (2) 17-round magazines",50,"Each"]
[null,22,"Glock Model G26 (Gen5, .9mm), Glock Night Sights, (2) 10 round magazines",50,"Each"]